bitfinex-derivatives/quotes_SOLF0:USTF0_20251119
["timestamp","ask_amount","ask_price","bid_price","bid_amount"]
[1763573102876,105.6407,132.64,132.54,3.28]
[1763573103078,121.8207,132.64,132.55,3.28]
[1763573103375,121.8207,132.64,132.51,121.9198]
[1763573103376,105.6795,132.59,132.51,19.46]
[1763573103678,0.05441425,132.56,132.49,3.28]
[1763573103981,121.8663,132.61,132.51,3.28]
[1763573104176,105.6712,132.6,132.51,3.28]
[1763573104678,105.74820991,132.57,132.54,0.04864106]
[1763573104877,0.05060991,132.57,132.54,3.32864106]
[1763573105680,16.22,132.65,132.56,3.28]
[1763573105983,121.8472,132.66,132.56,3.28]
[1763573106174,105.6513,132.63,132.56,3.28]
[1763573106674,105.6513,132.63,132.58,0.05055223]
[1763573106675,0.04883735,132.61,132.58,0.05055223]
[1763573106874,105.72290427,132.61,132.58,0.05055223]
[1763573107073,0.05700427,132.61,132.58,0.05055223]
[1763573107979,128.25,132.68,132.58,3.17055223]
[1763573108277,105.5944,132.7,132.58,108.8029]
[1763573108478,10.67627462,132.73,132.61,3.12]
[1763573108683,105.5838,132.71,132.61,3.12]
[1763573108985,0.0494624,132.67,132.65,0.05640791]
[1763573109277,0.05450404,132.67,132.65,0.05640791]
[1763573109885,105.67010404,132.67,132.57,3.12]
[1763573110085,105.6102,132.68,132.57,3.12]
[1763573110086,121.8502,132.68,132.57,3.12]
[1763573110677,6.7904,132.66,132.57,3.12]
[1763573110877,0.05506063,132.63,132.6,0.05029114]
[1763573111081,0.05506063,132.63,132.6,0.05571038]
[1763573113698,105.70616063,132.63,132.54,3.12]
[1763573113989,121.8711,132.63,132.51,3.12]
[1763573114181,105.6553,132.62,132.51,3.12]
[1763573114689,105.6242,132.66,132.51,3.12]
[1763573114886,0.05781259,132.58,132.55,3.17581443]
[1763573115198,10.67627462,132.66,132.55,3.17146699]
[1763573115385,16.22,132.65,132.55,3.12]
[1763573115692,121.8541,132.65,132.55,3.12]
[1763573115890,16.22,132.65,132.55,3.12]
[1763573116103,105.6503,132.63,132.52,3.12]
[1763573116300,0.05013825,132.59,132.56,3.17081524]
[1763573116509,0.05451464,132.59,132.56,3.17265186]
[1763573118210,0.05451464,132.59,132.56,0.05265186]
[1763573120105,0.05451464,132.59,132.56,3.17265186]
[1763573123615,6.84821464,132.59,132.56,3.17265186]
[1763573124617,0.05451464,132.59,132.56,3.17265186]
[1763573125118,0.05451464,132.59,132.56,9.96765186]
[1763573125308,0.05451464,132.59,132.57,3.26]
[1763573125506,0.05451464,132.59,132.56,10.10765186]
[1763573125705,0.05451464,132.59,132.56,3.31265186]
[1763573127817,0.00451464,132.59,132.56,3.31265186]
[1763573128123,105.6241,132.66,132.59,3.26]
[1763573128521,105.6229,132.67,132.59,3.26]
[1763573128718,38.86,132.68,132.59,3.26]
[1763573128719,5.38077015,132.66,132.59,3.26]
[1763573128920,0.04892093,132.64,132.61,0.05304979]
[1763573129316,6.84012093,132.64,132.61,0.05304979]
[1763573129515,0.04892093,132.64,132.61,0.05304979]
[1763573130113,6.7917,132.63,132.61,0.05304979]
[1763573130313,0.04892093,132.64,132.61,0.05304979]
[1763573130508,0.04892093,132.64,132.61,3.31304979]
[1763573130713,112.4223634,132.73,132.63,3.26]
[1763573130917,5.38898593,132.72,132.63,3.26]
[1763573131110,5.38898593,132.71,132.63,3.26]
[1763573131421,128.6127634,132.74,132.63,10.0515]
[1763573131621,128.6127634,132.74,132.67,0.05426481]
[1763573131622,0.0539463,132.7,132.67,0.05426481]
[1763573131822,6.7885,132.69,132.67,0.05426481]
[1763573132114,0.0539463,132.7,132.62,16.2]
[1763573132316,138.90777462,132.7,132.62,16.2]
[1763573132510,5.38964944,132.69,132.6,3.26]
[1763573132908,135.0676634,132.72,132.6,3.26]
[1763573133111,0.049852,132.67,132.6,3.26]
[1763573133507,0.049852,132.67,132.62,0.05059904]
[1763573134519,5.43892036,132.67,132.62,0.05059904]
[1763573135324,0.049852,132.67,132.62,0.05059904]
[1763573135623,6.7901,132.66,132.62,0.05059904]
[1763573136520,6.7906,132.65,132.62,0.05059904]
[1763573136720,0.049852,132.67,132.62,0.05059904]
[1763573136923,105.6237,132.66,132.62,0.05059904]
[1763573137424,105.6398,132.64,132.54,3.26]
[1763573137810,6.7932,132.6,132.54,3.26]
[1763573138524,0.05571373,132.58,132.56,0.04861342]
[1763573138824,0.04936165,132.58,132.56,0.04861342]
[1763573140210,0.04936165,132.58,132.56,3.20861342]
[1763573140924,0.04936165,132.58,132.56,0.04861342]
[1763573141510,6.84366165,132.58,132.56,0.04861342]
[1763573141716,5.40130556,132.57,132.56,0.04861342]
[1763573141917,0.04936165,132.58,132.49,3.16]
[1763573142224,5.40140329,132.58,132.49,3.16]
[1763573142819,0.05006948,132.55,132.52,0.05028996]
[1763573145133,0.05006948,132.55,132.52,3.21028996]
[1763573148221,0.05006948,132.55,132.52,0.05028996]
[1763573148931,5.46773484,132.55,132.52,0.05028996]
[1763573149129,0.05006948,132.55,132.52,3.21028996]
[1763573149329,5.4176028,132.59,132.52,3.21028996]
[1763573149531,6.8494634,132.62,132.54,3.16]
[1763573149737,5.42004128,132.61,132.54,3.16]
[1763573149926,5.42004128,132.6,132.54,3.16]
[1763573150131,23.0094634,132.63,132.54,3.16]
[1763573150327,0.0505613,132.6,132.57,0.05022738]
[1763573151444,0.0505613,132.6,132.57,3.21022738]
[1763573152139,6.8494634,132.66,132.57,3.21022738]
[1763573152441,5.41922896,132.65,132.57,3.16]
[1763573152641,5.41922896,132.64,132.57,3.16]
[1763573152832,5.41922896,132.63,132.57,3.16]
[1763573153027,6.8494634,132.66,132.57,3.16]
[1763573153237,0.04814553,132.63,132.6,3.21476068]
[1763573154936,6.83984553,132.63,132.6,0.05476068]
[1763573156936,0.04814553,132.63,132.6,0.05476068]
[1763573157538,6.83984553,132.63,132.6,0.05476068]
[1763573158047,0.04814553,132.63,132.6,0.05476068]
[1763573158250,0.04814553,132.63,132.6,3.21476068]
[1763573159246,0.04814553,132.63,132.6,0.05476068]
[1763573159438,5.44967923,132.63,132.6,0.05476068]
[1763573159848,6.7922,132.62,132.6,0.05476068]
[1763573160240,0.04814553,132.63,132.6,0.05476068]
[1763573160241,0.04814553,132.63,132.6,3.21476068]
[1763573161041,6.83984553,132.63,132.6,3.21476068]
[1763573161352,0.04814553,132.63,132.6,0.05476068]
[1763573161739,0.04814553,132.63,132.6,3.21476068]
[1763573162638,20.39070931,132.71,132.6,4.71476068]
[1763573162639,6.8494634,132.71,132.6,4.71476068]
[1763573162842,5.37745097,132.7,132.62,3.16]
[1763573163068,5.37745097,132.69,132.62,3.16]
[1763573163250,121.7113,132.73,132.64,3.16]
[1763573163251,6.8494634,132.73,132.64,3.16]
[1763573163441,5.37588258,132.72,132.65,3.16]
[1763573163752,0.04888555,132.7,132.67,0.04953445]
[1763573163947,5.41136739,132.7,132.67,0.04953445]
[1763573164152,0.04888555,132.7,132.67,0.04953445]
[1763573165044,6.83698555,132.7,132.67,0.04953445]
[1763573165244,0.04888555,132.7,132.67,0.04953445]
[1763573166658,6.83708555,132.7,132.67,0.04953445]
[1763573166952,0.04888555,132.7,132.67,0.04953445]
[1763573167138,0.04888555,132.7,132.67,3.20953445]
[1763573167948,0.04888555,132.7,132.67,0.04953445]
[1763573168248,6.7886,132.69,132.67,0.04953445]
[1763573168852,0.04888555,132.7,132.67,0.04953445]
[1763573169355,6.7886,132.69,132.67,0.04953445]
[1763573171055,0.04888555,132.7,132.67,0.04953445]
[1763573171446,0.04888555,132.7,132.55,105.7076]
[1763573171447,105.6251,132.66,132.59,3.21]
[1763573171648,105.6154,132.67,132.59,3.21]
[1763573172242,6.791,132.65,132.59,3.21]
[1763573172447,0.0480346,132.63,132.61,0.04979569]
[1763573172652,0.0480346,132.63,132.61,3.25979569]
[1763573173552,6.8398346,132.63,132.61,0.04979569]
[1763573174246,0.0480346,132.63,132.61,0.04979569]
[1763573174553,0.0480346,132.63,132.61,3.25979569]
[1763573174944,0.0480346,132.63,132.61,0.04979569]
[1763573175349,6.8397346,132.63,132.61,0.04979569]
[1763573176646,105.6982346,132.63,132.54,3.21]
[1763573176956,105.6502,132.63,132.54,3.21]
[1763573177251,6.7927,132.61,132.54,3.21]
[1763573177458,105.6502,132.63,132.54,3.21]
[1763573177652,0.05082577,132.6,132.57,0.05369712]
[1763573178854,121.84522577,132.6,132.57,0.05369712]
[1763573179050,6.7937,132.59,132.57,0.05369712]
[1763573179752,0.05082577,132.6,132.57,3.26369712]
[1763573180057,0.05082577,132.6,132.57,0.05369712]
[1763573181160,6.7937,132.59,132.57,0.05369712]
[1763573181561,0.05082577,132.6,132.57,0.05369712]
[1763573182150,0.05082577,132.6,132.57,3.26369712]
[1763573182354,6.84402577,132.6,132.57,0.05369712]
[1763573182666,0.05082577,132.6,132.57,0.05369712]
[1763573183060,6.7937,132.59,132.57,0.05369712]
[1763573183756,6.7958,132.55,132.5,3.21]
[1763573184360,6.7952,132.56,132.5,3.21]
[1763573184757,105.688,132.58,132.5,3.21]
[1763573185062,105.6748,132.6,132.52,3.24857531]
[1763573185263,105.6748,132.6,132.52,3.2]
[1763573185558,6.7947,132.57,132.52,3.2]
[1763573185755,105.6748,132.6,132.49,13.63533007]
[1763573185756,105.6909,132.58,132.49,3.2]
[1763573185957,0.05475535,132.55,132.52,3.25146602]
[1763573187251,6.7963,132.54,132.52,0.05146602]
[1763573187454,0.05475535,132.55,132.52,3.25146602]
[1763573187851,105.6578,132.62,132.52,3.25146602]
[1763573188055,121.7779,132.62,132.52,3.2]
[1763573188257,105.6647,132.61,132.52,3.2]
[1763573188457,6.7948,132.57,132.52,3.2]
[1763573188660,105.6647,132.61,132.52,3.2]
[1763573188862,0.05446577,132.58,132.55,0.05353023]
[1763573189064,6.7947,132.57,132.55,0.05353023]
[1763573189460,0.05446577,132.58,132.55,0.05353023]
[1763573189663,6.7947,132.57,132.55,0.05353023]
[1763573189863,0.05446577,132.58,132.55,3.25353023]
[1763573190067,6.84866577,132.58,132.55,3.25353023]
[1763573190263,0.05446577,132.58,132.55,3.25353023]
[1763573190665,0.05446577,132.58,132.55,0.05353023]
[1763573191054,6.7964,132.54,132.48,3.2]
[1763573191263,105.709,132.56,132.48,3.2]
[1763573191566,112.53543007,132.57,132.48,3.2]
[1763573191768,6.7962,132.54,132.48,3.2]
[1763573192059,0.04819951,132.52,132.5,3.25010585]
[1763573192266,0.05611025,132.52,132.5,3.24830034]
[1763573193165,0.05611025,132.52,132.5,0.04830034]
[1763573193664,0.05611025,132.52,132.41,6.83703007]
[1763573193665,0.05611025,132.52,132.41,3.2]
[1763573193867,105.7777,132.47,132.41,3.2]
[1763573194066,105.7832,132.46,132.41,3.2]
[1763573194367,105.7919,132.45,132.41,3.2]
[1763573194564,105.7919,132.45,132.4,16.12]
[1763573194768,0.05303641,132.44,132.42,0.04822211]
[1763573194974,6.85463641,132.44,132.42,0.04822211]
[1763573195559,105.8168,132.42,132.34,109.86]
[1763573195766,121.914,132.45,132.35,3.2]
[1763573196069,6.803,132.41,132.35,3.2]
[1763573196263,6.83703007,132.44,132.35,3.2]
[1763573196674,0.05144332,132.41,132.38,3.25804406]
[1763573197174,0.05144332,132.41,132.38,0.05804406]
[1763573197369,0.05144332,132.41,132.38,3.25804406]
[1763573200264,105.7353,132.52,132.38,3.25804406]
[1763573200464,112.57203007,132.52,132.38,3.2]
[1763573200668,6.83703007,132.52,132.38,3.2]
[1763573200871,105.7434,132.51,132.41,3.23]
[1763573201066,112.57683007,132.52,132.41,3.23]
[1763573201266,0.05078674,132.48,132.45,0.04757524]
[1763573201472,6.85018674,132.48,132.45,0.04757524]
[1763573201672,0.05078674,132.48,132.45,0.04757524]
[1763573202176,6.8,132.47,132.45,0.04757524]
[1763573202677,6.8027,132.42,132.36,3.23]
[1763573202879,6.83703007,132.46,132.36,3.23]
[1763573203084,112.62283007,132.46,132.36,3.23]
[1763573203381,6.8017,132.44,132.36,3.23]
[1763573203770,112.62283007,132.46,132.39,3.28053507]
[1763573203771,0.05806853,132.41,132.39,3.28053507]
[1763573203976,0.05128178,132.41,132.39,3.28053507]
[1763573204585,105.7805,132.47,132.39,3.28053507]
[1763573204779,105.7805,132.47,132.39,3.23]
[1763573204978,6.801,132.45,132.39,3.23]
[1763573205479,0.05002957,132.43,132.41,0.0477877]
[1763573205680,0.05002957,132.43,132.42,3.23]
[1763573207787,6.8002,132.47,132.42,3.23]
[1763573208079,105.7625,132.49,132.42,3.23]
[1763573208286,6.7996,132.48,132.42,3.23]
[1763573208587,105.751,132.5,132.42,3.23]
[1763573208878,0.04824717,132.47,132.45,0.05316431]
[1763573209475,6.84814717,132.47,132.45,0.05316431]
[1763573210580,0.04824717,132.47,132.45,0.05316431]
[1763573211289,0.04824717,132.47,132.45,3.28316431]
[1763573211580,0.04824717,132.47,132.45,0.05316431]
[1763573212388,6.84814717,132.47,132.45,0.05316431]
[1763573214481,0.04824717,132.47,132.45,3.28316431]
[1763573215091,105.716,132.55,132.45,3.28316431]
[1763573215386,127.1540777,132.54,132.45,3.23]
[1763573215599,6.7983,132.5,132.45,3.23]
[1763573216092,0.0510243,132.49,132.46,0.05519398]
[1763573216297,0.0510243,132.49,132.47,3.23]
[1763573218785,6.7977,132.52,132.47,3.23]
[1763573219591,6.7977,132.52,132.48,3.23]
[1763573219791,0.04844896,132.51,132.5,3.23]
[1763573219989,0.05743066,132.52,132.5,3.23]
[1763573221193,105.6678,132.61,132.5,3.23]
[1763573221395,111.00552675,132.6,132.5,3.23]
[1763573221600,105.6729,132.6,132.5,3.23]
[1763573221799,16.12,132.62,132.51,3.23]
[1763573222000,16.12,132.62,132.53,3.23]
[1763573222304,6.7945,132.58,132.56,0.05063094]
[1763573222488,105.7048,132.56,132.5,3.23]
[1763573222689,105.7126,132.55,132.5,3.23]
[1763573222900,6.7969,132.53,132.5,3.23]
[1763573223500,0.05806442,132.53,132.5,3.28690624]
[1763573227303,6.7945,132.58,132.5,3.28690624]
[1763573227502,105.6552,132.62,132.5,3.23]
[1763573227706,105.6634,132.61,132.5,3.23]
[1763573227897,6.7938,132.59,132.54,3.21]
[1763573228092,6.7938,132.59,132.55,3.21]
[1763573228306,6.85081318,132.58,132.56,3.25909746]
[1763573228810,6.85081318,132.58,132.56,0.04909746]
[1763573229104,0.05661318,132.58,132.56,3.25909746]
[1763573231111,0.05661318,132.58,132.56,0.04909746]
[1763573231609,6.85091318,132.58,132.56,0.04909746]
[1763573232509,8.35091318,132.58,132.56,0.04909746]
[1763573232899,6.85091318,132.58,132.56,0.04909746]
[1763573235607,6.7968,132.53,132.5,3.21]
[1763573236697,0.05268204,132.53,132.5,3.26349156]
[1763573237504,132.48496542,132.63,132.5,4.76349156]
[1763573237703,5.33144525,132.62,132.51,3.21]
[1763573237902,6.793,132.61,132.54,3.21]
[1763573238101,105.648,132.63,132.54,3.21]
[1763573238307,121.7352,132.65,132.54,3.21]
[1763573238512,0.05220638,132.6,132.58,3.21]
[1763573238712,0.04773019,132.6,132.58,3.26282058]
[1763573239706,6.7907,132.65,132.59,3.21]
[1763573239909,105.6187,132.67,132.59,3.21]
[1763573240306,6.7912,132.64,132.59,3.21]
[1763573240618,0.05530013,132.63,132.61,3.21]
[1763573241806,105.5727,132.73,132.61,3.21]
[1763573242006,105.5961,132.7,132.61,3.21]
[1763573242809,105.5875,132.71,132.62,3.21]
[1763573243008,0.05419021,132.67,132.64,3.26429579]
[1763573244010,6.7902,132.66,132.64,3.26429579]
[1763573244210,6.7902,132.66,132.64,0.05429579]
[1763573246711,0.05419021,132.67,132.64,0.05429579]
[1763573246916,0.05419021,132.67,132.64,3.34429579]
[1763573247117,0.05419021,132.67,132.64,0.05429579]
[1763573247519,6.7901,132.66,132.64,0.05429579]
[1763573248425,105.6414,132.64,132.58,3.29]
[1763573248613,105.6328,132.65,132.58,3.29]
[1763573249021,6.7921,132.62,132.58,3.29]
[1763573249219,105.7199234,132.61,132.59,0.05207646]
[1763573249907,6.7931,132.6,132.59,0.05207646]
[1763573250916,107.1714,132.6,132.53,3.29]
[1763573251219,105.6714,132.6,132.53,3.29]
[1763573251520,6.7947,132.57,132.53,3.29]
[1763573252022,0.05108925,132.56,132.54,0.05109688]
[1763573252222,6.84628925,132.56,132.54,0.05109688]
[1763573253215,6.7975,132.52,132.45,16.1]
[1763573253419,6.7975,132.52,132.46,3.29]
[1763573254123,0.0548132,132.5,132.49,3.29]
[1763573254331,16.1,132.6,132.49,3.29]
[1763573254526,105.6956,132.57,132.49,3.29]
[1763573254931,26.83096542,132.6,132.49,3.29]
[1763573255122,105.6883,132.58,132.49,3.29]
[1763573255323,0.05730719,132.56,132.53,0.05738812]
[1763573256022,6.85260719,132.56,132.53,3.34738812]
[1763573256717,0.05730719,132.56,132.53,3.34738812]
[1763573257519,0.05730719,132.56,132.53,0.05738812]
[1763573258033,6.7958,132.55,132.53,0.05738812]
[1763573258821,0.05730719,132.56,132.53,0.05738812]
[1763573259418,6.7958,132.55,132.53,0.05738812]
[1763573259724,0.05730719,132.56,132.53,3.39738812]
[1763573263026,0.05730719,132.56,132.53,10.19398812]
[1763573263225,0.05730719,132.56,132.53,3.39738812]
[1763573263426,6.7938,132.59,132.53,3.39738812]
[1763573263624,105.6585,132.62,132.53,3.39738812]
[1763573263820,105.6575,132.62,132.55,3.34]
[1763573264127,105.6647,132.61,132.55,3.34]
[1763573264332,6.7942,132.58,132.57,0.05291145]
[1763573265324,6.7942,132.58,132.57,3.39291145]
[1763573265525,0.05463128,132.59,132.57,3.39291145]
[1763573266228,0.05463128,132.59,132.57,0.05291145]
[1763573266832,6.84833128,132.59,132.57,0.05291145]
[1763573267025,6.84833128,132.59,132.57,3.39291145]
[1763573267525,6.84833128,132.59,132.57,0.05291145]
[1763573269544,6.84833128,132.59,132.57,3.39291145]
[1763573270041,6.84833128,132.59,132.57,0.05291145]
[1763573274148,6.84833128,132.59,132.57,3.39291145]
[1763573274349,0.05463128,132.59,132.57,3.39291145]
[1763573276551,105.6285,132.66,132.58,3.34]
[1763573277340,6.84710412,132.63,132.61,0.0481387]
[1763573278751,6.7921,132.62,132.61,0.0481387]
[1763573279649,0.05520412,132.63,132.61,0.0481387]
[1763573280348,0.05520412,132.63,132.61,3.3881387]
[1763573280746,13.643527,132.73,132.64,6.791]
[1763573280947,5.3685701,132.72,132.64,6.791]
[1763573281150,5.3685701,132.72,132.65,19.42]
[1763573281361,6.83386851,132.76,132.66,10.1299]
[1763573281558,5.36632156,132.75,132.66,10.1299]
[1763573281853,0.0527532,132.72,132.69,3.39672087]
[1763573282060,0.05177635,132.72,132.69,3.3875713]
[1763573282847,5.36282261,132.78,132.7,10.17386851]
[1763573283051,22.93577656,132.84,132.75,3.34]
[1763573283358,112.30196851,132.86,132.75,3.34]
[1763573283557,105.4728,132.85,132.75,3.34]
[1763573283861,0.03069771,132.81,132.79,3.38842305]
[1763573284162,0.03069771,132.81,132.79,0.04842305]
[1763573284372,0.03069771,132.81,132.79,3.38842305]
[1763573284657,105.53539771,132.81,132.79,0.04842305]
[1763573284858,105.5171,132.8,132.73,16.08]
[1763573285450,6.783,132.8,132.73,16.08]
[1763573285659,105.4987,132.82,132.74,3.34]
[1763573286051,0.0498326,132.79,132.77,0.05488411]
[1763573286256,0.0498326,132.79,132.77,3.39488411]
[1763573286564,112.28596851,132.88,132.77,3.39488411]
[1763573286859,105.4567,132.87,132.77,3.34]
[1763573287063,6.7811,132.84,132.77,3.34]
[1763573287264,6.83386851,132.88,132.77,3.34]
[1763573287564,0.02928816,132.84,132.81,0.05368409]
[1763573289257,6.81028816,132.84,132.81,0.05368409]
[1763573289566,0.02928816,132.84,132.81,0.05368409]
[1763573290065,0.02928816,132.84,132.81,3.28368409]
[1763573290460,105.4176,132.92,132.81,3.28368409]
[1763573290461,6.7783,132.89,132.81,3.28368409]
[1763573290663,6.7783,132.89,132.81,3.23]
[1763573290858,105.4412,132.89,132.81,3.23]
[1763573291062,6.779,132.88,132.81,3.23]
[1763573291264,6.779,132.88,132.77,3.23]
[1763573291265,105.4658,132.86,132.77,3.23]
[1763573291466,105.4727,132.85,132.77,19.29]
[1763573291772,6.7822,132.82,132.8,0.05027463]
[1763573292274,105.4732,132.85,132.8,0.05027463]
[1763573292956,112.30156851,132.86,132.8,0.05027463]
[1763573293155,105.4523,132.88,132.8,0.05027463]
[1763573293156,16.06,132.88,132.8,0.05027463]
[1763573293366,16.06,132.88,132.83,0.0564803]
[1763573293664,105.4656,132.86,132.83,0.0564803]
[1763573294259,6.7806,132.85,132.83,0.0564803]
[1763573294661,112.29946851,132.86,132.77,3.23]
[1763573294966,6.7815,132.83,132.77,3.23]
[1763573295164,105.4824,132.84,132.77,3.23]
[1763573295669,0.05134256,132.82,132.79,0.05190596]
[1763573295968,6.83334256,132.82,132.79,0.05190596]
[1763573296269,105.55034256,132.82,132.79,0.05190596]
[1763573296465,105.55034256,132.82,132.72,3.23]
[1763573296466,105.5126,132.8,132.72,3.23]
[1763573296656,105.5212,132.79,132.72,3.23]
[1763573297474,0.04796075,132.77,132.74,0.05287168]
[1763573298872,112.42412926,132.77,132.74,0.05287168]
[1763573299074,6.7852,132.76,132.74,0.05287168]
[1763573299871,6.7852,132.76,132.67,3.23]
[1763573299872,6.787,132.72,132.67,3.23]
[1763573300177,105.531,132.78,132.67,3.23]
[1763573300178,6.83386851,132.81,132.69,3.23]
[1763573300473,112.34086851,132.81,132.7,3.23]
[1763573300979,0.05613307,132.76,132.73,0.05541497]
[1763573301977,6.84123307,132.76,132.73,0.05541497]
[1763573302779,6.7856,132.75,132.73,0.05541497]
[1763573303169,0.05613307,132.76,132.73,3.28541497]
[1763573303473,112.32656851,132.83,132.73,3.28541497]
[1763573303667,105.4975,132.82,132.73,3.23]
[1763573304066,6.7825,132.81,132.74,3.23]
[1763573304265,105.4961,132.82,132.74,3.23]
[1763573304464,6.836569,132.79,132.77,0.05207033]
[1763573305772,0.053069,132.79,132.77,0.05207033]
[1763573307476,0.053069,132.79,132.77,3.29207033]
[1763573307673,105.457,132.87,132.78,3.24]
[1763573307873,22.89386851,132.89,132.78,3.24]
[1763573308177,6.83386851,132.86,132.78,3.24]
[1763573308877,0.05205587,132.83,132.81,0.05237917]
[1763573309083,6.83355587,132.83,132.81,0.05237917]
[1763573309468,0.05205587,132.83,132.81,0.05237917]
[1763573311376,0.05205587,132.83,132.81,3.29237917]
[1763573311976,105.4292,132.91,132.81,3.29237917]
[1763573312183,105.436,132.9,132.81,3.24]
[1763573312386,6.7794,132.87,132.81,3.24]
[1763573312784,6.7799,132.86,132.81,3.24]
[1763573312979,6.7799,132.86,132.82,0.05775435]
[1763573313876,6.7799,132.86,132.82,3.29775435]
[1763573315884,6.7805,132.85,132.82,3.29775435]
[1763573316282,6.781,132.84,132.82,0.05775435]
[1763573317991,6.7828,132.81,132.77,3.28]
[1763573318179,105.4737,132.85,132.77,3.28]
[1763573319090,6.83306944,132.82,132.8,0.05390582]
[1763573319795,6.786,132.74,132.71,3.28]
[1763573319980,105.5237,132.79,132.71,3.28]
[1763573320293,105.493,132.83,132.71,3.28]
[1763573320294,6.783,132.8,132.71,3.28]
[1763573320586,105.505,132.81,132.71,3.28]
[1763573320786,105.513,132.8,132.71,3.28]
[1763573320990,6.7846,132.77,132.71,3.28]
[1763573321288,0.05604541,132.77,132.75,3.28]
[1763573322281,6.7831,132.8,132.75,3.28]
[1763573322487,105.484,132.84,132.75,3.28]
[1763573322786,5.35124517,132.83,132.75,3.28]
[1763573323291,0.0531503,132.8,132.78,0.05725865]
[1763573323595,0.0531503,132.8,132.78,3.33725865]
[1763573324902,5.36973456,132.83,132.78,3.33725865]
[1763573325195,112.31367656,132.87,132.78,3.33725865]
[1763573325395,6.7805,132.85,132.79,3.28]
[1763573325583,112.30697656,132.88,132.79,3.28]
[1763573325891,6.7804,132.85,132.79,6.7833]
[1763573326096,112.30697656,132.88,132.82,3.33218827]
[1763573326291,12.22772146,132.87,132.82,3.33218827]
[1763573326488,5.3719449,132.86,132.82,3.33218827]
[1763573326689,112.29197656,132.9,132.82,3.33218827]
[1763573326998,6.7796,132.87,132.85,0.05417866]
[1763573327200,5.3757856,132.86,132.85,0.05417866]
[1763573330591,6.7804,132.85,132.79,26.1232]
[1763573330790,5.3757856,132.84,132.79,19.34]
[1763573330990,6.85577656,132.87,132.79,19.34]
[1763573331188,6.7804,132.85,132.79,19.34]
[1763573331390,22.91577656,132.88,132.79,19.34]
[1763573331607,0.05225231,132.85,132.82,0.0493732]
[1763573331889,0.05225231,132.85,132.82,3.3293732]
[1763573333395,6.89194137,132.93,132.82,3.3293732]
[1763573333598,5.37311722,132.92,132.82,3.28]
[1763573333901,5.37311722,132.91,132.82,3.28]
[1763573334102,112.29594137,132.94,132.82,3.28]
[1763573334299,5.37202261,132.93,132.87,3.33453207]
[1763573334503,5.37202261,132.92,132.89,0.04846941]
[1763573334696,112.28074137,132.96,132.89,0.04846941]
[1763573335005,5.37163593,132.95,132.89,0.04846941]
[1763573335206,5.37163593,132.94,132.89,0.04846941]
[1763573335388,5.37163593,132.93,132.89,0.04846941]
[1763573335794,5.37163593,132.92,132.89,0.04846941]
[1763573336002,105.4038,132.94,132.89,3.32846941]
[1763573336204,5.36957344,132.93,132.89,3.32846941]
[1763573336392,5.36957344,132.93,132.89,0.04846941]
[1763573337592,6.7774,132.91,132.89,0.04846941]
[1763573338305,6.7766,132.93,132.89,0.04846941]
[1763573338599,121.4357,132.95,132.89,0.04846941]
[1763573338905,5.36031675,132.94,132.89,0.04846941]
[1763573339308,121.4357,132.95,132.89,0.04846941]
[1763573339510,105.3957,132.95,132.89,0.04846941]
[1763573340201,6.7766,132.93,132.89,0.04846941]
[1763573340403,105.3965,132.95,132.89,0.04846941]
[1763573340601,105.386,132.96,132.89,0.04846941]
[1763573340801,105.4106,132.93,132.89,0.04846941]
[1763573341007,105.4179,132.92,132.89,0.04846941]
[1763573341197,6.7777,132.91,132.89,0.04846941]
[1763573341397,132.0961484,132.95,132.89,0.04846941]
[1763573342005,121.4334,132.95,132.89,0.04846941]
[1763573342309,6.7774,132.91,132.89,0.04846941]
[1763573344007,22.61,132.96,132.89,3.32846941]
[1763573344209,21.39386207,132.95,132.89,3.32846941]
[1763573344411,10.6627484,132.98,132.89,3.32846941]
[1763573344709,5.35447999,132.97,132.92,0.05044049]
[1763573344917,121.4123,132.98,132.92,0.05044049]
[1763573345110,6.7747,132.96,132.92,0.05044049]